bitfinex/quotes_BTCUSD_20250115
["timestamp","ask_amount","ask_price","bid_price","bid_amount"]
[1736973619601,0.1,99917.0,99896.0,0.0507369]
[1736973620886,0.1,99922.0,99897.0,0.12722692]
[1736973621183,0.1,99922.0,99901.0,0.400395]
[1736973621369,0.001,99917.0,99905.0,0.1217]
[1736973621584,0.001,99917.0,99907.0,0.0752]
[1736973621750,0.00052,99923.0,99910.0,0.0465]
[1736973621974,0.00052,99923.0,99912.0,0.0465]
[1736973622130,0.00052,99923.0,99916.0,0.0752]
[1736973622131,0.001,99922.0,99916.0,0.0752]
[1736973622331,0.00052,99923.0,99918.0,0.0752]
[1736973622558,0.00052,99923.0,99919.0,0.0465]
[1736973622766,0.00052,99923.0,99921.0,0.0752]
[1736973622971,0.00052,99923.0,99921.0,0.0758917]
[1736973623173,0.00052,99923.0,99922.0,0.1223917]
[1736973623377,0.00052,99923.0,99922.0,0.17243649]
[1736973623903,0.00052,99923.0,99922.0,0.17243628]
[1736973624117,0.00052,99923.0,99922.0,0.17243622]
[1736973624891,0.00052,99923.0,99922.0,0.17543622]
[1736973625149,0.00052,99923.0,99922.0,0.17643622]
[1736973625361,0.00052,99923.0,99922.0,0.17543622]
[1736973625574,0.00052,99923.0,99922.0,0.17943622]
[1736973625988,0.00052,99923.0,99922.0,0.17643622]
[1736973626360,0.00052,99923.0,99922.0,0.17843622]
[1736973626778,0.00052,99923.0,99922.0,0.17243622]
[1736973626953,0.00052,99923.0,99922.0,0.17443622]
[1736973627161,0.00052,99923.0,99922.0,0.17543622]
[1736973627380,0.00052,99923.0,99922.0,0.17443622]
[1736973627584,0.00052,99923.0,99922.0,0.17243622]
[1736973627792,0.00052,99923.0,99922.0,0.17743622]
[1736973628161,0.00052,99923.0,99922.0,0.17443622]
[1736973628381,0.00052,99923.0,99922.0,0.17543622]
[1736973628603,0.00052,99923.0,99922.0,0.17374479]
[1736973628809,0.20052,99923.0,99922.0,0.18010479]
[1736973628995,0.20052,99923.0,99922.0,0.18310479]
[1736973629641,0.20052,99923.0,99922.0,0.18110479]
[1736973629992,0.20052,99923.0,99922.0,0.17910479]
[1736973630425,0.20052,99923.0,99922.0,0.18110479]
[1736973630677,0.20052,99923.0,99922.0,0.17810479]
[1736973630844,0.20152,99923.0,99922.0,0.17810479]
[1736973631053,0.20652,99923.0,99922.0,0.17810479]
[1736973631254,0.20052,99923.0,99922.0,0.05640479]
[1736973631548,0.20152,99923.0,99922.0,0.05640479]
[1736973631750,0.20652,99923.0,99922.0,0.05640479]
[1736973632046,0.20152,99923.0,99922.0,0.05640479]
[1736973632974,0.30474692,99923.0,99922.0,0.05004479]
[1736973633185,0.45474692,99923.0,99922.0,0.05004479]
[1736973633387,0.45574692,99923.0,99922.0,0.05089989]
[1736973633620,0.45754263,99923.0,99922.0,0.05089989]
[1736973634036,0.46054263,99923.0,99922.0,0.04589989]
[1736973634157,0.45654263,99923.0,99922.0,0.04589989]
[1736973634366,0.45854263,99923.0,99922.0,0.04589989]
[1736973634572,0.46654263,99923.0,99922.0,0.04748994]
[1736973634769,0.46454263,99923.0,99922.0,0.04648994]
[1736973634990,0.66484263,99923.0,99922.0,0.04648994]
[1736973635613,1.00507392,99923.0,99922.0,0.04748994]
[1736973636262,1.00189825,99923.0,99922.0,0.04748994]
[1736973636492,0.0038,99922.0,99920.0,9.89074157]
[1736973636704,0.0038,99922.0,99920.0,2.21628907]
[1736973636705,1.08677144,99921.0,99920.0,2.21628907]
[1736973636920,0.54364433,99850.0,99849.0,0.0136964]
[1736973637129,0.59764718,99850.0,99849.0,0.0136964]
[1736973637342,0.70702135,99850.0,99849.0,0.0136964]
[1736973637552,0.39368033,99832.0,99818.0,0.00636]
[1736973637756,0.39368033,99832.0,99830.0,0.00636]
[1736973638168,0.09334433,99822.0,99821.0,0.0200713]
[1736973638379,0.09334433,99822.0,99821.0,0.02057309]
[1736973639144,0.09334433,99822.0,99821.0,0.02693309]
[1736973639364,0.1,99834.0,99821.0,0.02693309]
[1736973639578,0.1,99855.0,99835.0,0.20033]
[1736973639782,0.003,99850.0,99838.0,0.0803]
[1736973639980,0.003,99850.0,99839.0,0.02369353]
[1736973640289,0.200296,99852.0,99839.0,0.02484454]
[1736973640490,0.200296,99852.0,99839.0,0.07488933]
[1736973640706,0.200288,99856.0,99839.0,0.07488933]
[1736973640906,0.1,99854.0,99841.0,0.023]
[1736973641137,0.1,99854.0,99842.0,0.00069365]
[1736973641350,0.1,99854.0,99843.0,0.023]
[1736973641555,0.300294,99853.0,99842.0,0.05094594]
[1736973641704,0.1,99846.0,99844.0,0.00088111]
[1736973641914,0.1,99845.0,99843.0,0.00725113]
[1736973642264,0.1,99843.0,99839.0,0.024]
[1736973642470,0.1,99843.0,99840.0,0.00636]
[1736973644121,0.1,99843.0,99841.0,0.01679718]
[1736973644460,0.200316,99842.0,99841.0,0.06684197]
[1736973644667,0.300316,99842.0,99841.0,0.05095597]
[1736973644839,0.300316,99842.0,99841.0,0.05731597]
[1736973645038,0.300316,99842.0,99841.0,0.05640479]
[1736973645779,0.39366033,99842.0,99841.0,0.05640479]
[1736973646203,0.40166033,99842.0,99841.0,0.05640479]
[1736973646392,0.40166033,99842.0,99841.0,0.04987935]
[1736973646714,0.40166033,99842.0,99841.0,0.05623935]
[1736973646934,0.50888725,99842.0,99841.0,0.04987935]
[1736973647221,0.65888725,99842.0,99841.0,0.04987935]
[1736973648366,0.65088725,99842.0,99841.0,0.04987935]
[1736973648765,0.65488725,99842.0,99841.0,0.04987935]
[1736973648971,0.65188725,99842.0,99841.0,0.04987935]
[1736973649223,0.65188725,99842.0,99841.0,0.05187935]
[1736973649646,0.65188725,99842.0,99841.0,0.04987935]
[1736973649856,0.65188725,99842.0,99818.0,0.05556]
[1736973649857,0.200356,99822.0,99818.0,0.05556]
[1736973650249,0.39370033,99822.0,99818.0,0.05556]
[1736973650474,0.64792725,99822.0,99797.0,0.0457]
[1736973650676,0.64792725,99822.0,99813.0,0.00636]
[1736973651288,0.65492725,99822.0,99813.0,0.00636]
[1736973651441,0.64792725,99822.0,99821.0,0.07061788]
[1736973651850,0.65692725,99822.0,99821.0,0.07061788]
[1736973652367,0.65892725,99822.0,99821.0,0.07061788]
[1736973652570,0.64992725,99822.0,99821.0,0.07061788]
[1736973652750,0.65692725,99822.0,99821.0,0.07061788]
[1736973652951,0.65692725,99822.0,99821.0,0.07767967]
[1736973653158,0.56092725,99822.0,99821.0,0.07061788]
[1736973653918,0.55692725,99822.0,99821.0,0.07061788]
[1736973654061,0.55192725,99822.0,99821.0,0.07061788]
[1736973654291,0.56092725,99822.0,99821.0,0.07061788]
[1736973654737,0.45670033,99822.0,99821.0,0.07767967]
[1736973655523,0.45270033,99822.0,99821.0,0.07767967]
[1736973655637,0.55670033,99822.0,99821.0,0.07061788]
[1736973656113,0.45670033,99822.0,99821.0,0.07061788]
[1736973656531,0.55670033,99822.0,99821.0,0.07061788]
[1736973656781,0.40270033,99822.0,99821.0,0.07061788]
[1736973657138,0.39770033,99822.0,99821.0,0.07061788]
[1736973657370,0.39770033,99822.0,99821.0,0.07697788]
[1736973657371,0.40670033,99822.0,99821.0,0.07697788]
[1736973659478,0.40670033,99822.0,99821.0,0.07783358]
[1736973660213,0.40670033,99822.0,99821.0,0.07061788]
[1736973660421,0.51092725,99822.0,99821.0,0.07061788]
[1736973661636,0.40670033,99822.0,99821.0,0.07061788]
[1736973662091,0.40670033,99822.0,99821.0,0.07831567]
[1736973662294,0.40670033,99822.0,99821.0,0.07061788]
[1736973662295,0.66092725,99822.0,99821.0,0.07061788]
[1736973662937,0.65692725,99822.0,99821.0,0.07061788]
[1736973663148,0.65192725,99822.0,99821.0,0.07061788]
[1736973663347,0.15,99819.0,99797.0,0.0457]
[1736973663561,0.15,99817.0,99798.0,0.01271]
[1736973663760,0.1054795,99816.0,99798.0,0.01271]
[1736973663959,0.15,99815.0,99798.0,0.01271]
[1736973664165,0.15,99808.0,99798.0,0.01907]
[1736973664371,0.15,99804.0,99798.0,0.01271]
[1736973664580,0.15,99804.0,99795.0,0.00636]
[1736973665230,0.15,99804.0,99783.0,0.1302]
[1736973665432,0.00652627,99796.0,99792.0,0.00636]
[1736973665588,0.15,99804.0,99792.0,0.00636]
[1736973665807,0.200411,99795.0,99793.0,0.00568048]
[1736973666017,0.200411,99795.0,99793.0,0.05004479]
[1736973666660,0.200405,99798.0,99793.0,0.05004479]
[1736973667076,0.002,99795.0,99793.0,0.05004479]
[1736973668536,0.15,99803.0,99794.0,0.00636]
[1736973668661,0.200396,99802.0,99794.0,0.05640479]
[1736973668865,0.002,99798.0,99794.0,0.06208527]
[1736973669271,0.200396,99802.0,99794.0,0.06208527]
[1736973669520,0.158,99804.0,99794.0,0.06208527]
[1736973669729,0.200396,99802.0,99794.0,0.06208527]
[1736973670356,0.201396,99802.0,99794.0,0.06208527]
[1736973670621,0.201396,99802.0,99795.0,0.00624853]
[1736973670832,0.001,99802.0,99795.0,0.05629332]
[1736973671041,0.001,99802.0,99796.0,0.25842883]
[1736973671257,0.040089,99848.0,99804.0,0.200391]
[1736973671473,0.040089,99848.0,99807.0,0.023]
[1736973671672,0.20211298,99842.0,99809.0,0.023]
[1736973671877,0.20211298,99842.0,99811.0,0.023]
[1736973672088,0.20211498,99842.0,99814.0,0.0498]
[1736973672294,0.200325,99838.0,99815.0,0.12722692]
[1736973672500,0.200334,99833.0,99815.0,0.1284889]
[1736973672656,0.200334,99833.0,99816.0,0.02346937]
[1736973672657,0.200346,99828.0,99816.0,0.02346937]
[1736973672889,0.200346,99828.0,99817.0,0.00124192]
[1736973673091,0.200346,99828.0,99817.0,0.05128671]
[1736973673514,0.200346,99828.0,99818.0,0.00636]
[1736973673861,0.200346,99828.0,99819.0,0.00122187]
[1736973674039,0.200346,99828.0,99819.0,0.05126666]
[1736973674246,0.00306539,99822.0,99820.0,0.01074267]
[1736973674407,6.539e-05,99822.0,99820.0,0.06078746]
[1736973674603,6.539e-05,99822.0,99821.0,0.00120181]
[1736973674821,0.00706539,99822.0,99821.0,0.0512466]
[1736973675032,6.539e-05,99822.0,99821.0,0.05004479]
[1736973675380,0.00806539,99822.0,99821.0,0.05004479]
[1736973675880,0.00806539,99822.0,99821.0,0.0512466]
[1736973676088,0.00806539,99822.0,99821.0,0.06198726]
[1736973676292,0.00806539,99822.0,99821.0,0.0512466]
[1736973676505,6.539e-05,99822.0,99821.0,0.0512466]
[1736973676935,0.01006539,99822.0,99821.0,0.0512466]
[1736973677568,0.00806539,99822.0,99821.0,0.0576066]
[1736973677882,0.01006539,99822.0,99821.0,0.0576066]
[1736973678088,0.01006539,99822.0,99821.0,0.06714545]
[1736973678297,0.01006539,99822.0,99821.0,0.04640479]
[1736973678433,0.01006539,99822.0,99821.0,0.04004479]
[1736973682188,0.00806539,99822.0,99821.0,0.04004479]
[1736973682403,0.01006539,99822.0,99821.0,0.04004479]
[1736973682610,0.00206539,99822.0,99821.0,0.04004479]
[1736973682815,6.539e-05,99822.0,99821.0,0.04004479]
[1736973683018,0.00806539,99822.0,99821.0,0.04004479]
[1736973683232,0.00206539,99822.0,99821.0,0.04004479]
[1736973684016,0.01006539,99822.0,99821.0,0.04004479]
[1736973685297,0.11429231,99822.0,99821.0,0.04004479]
[1736973685703,0.00806539,99822.0,99821.0,0.04004479]
[1736973685900,0.20042139,99822.0,99821.0,0.04004479]
[1736973686103,0.20242139,99822.0,99821.0,0.04004479]
[1736973686260,0.21142139,99822.0,99821.0,0.04004479]
[1736973686464,0.20042139,99822.0,99821.0,0.04004479]
[1736973686657,0.20242139,99822.0,99821.0,0.04004479]
[1736973687186,0.20042139,99822.0,99821.0,0.04004479]
[1736973687381,0.22667763,99822.0,99821.0,0.04004479]
[1736973687587,0.21967763,99822.0,99821.0,0.04004479]
[1736973687985,0.00206539,99822.0,99816.0,0.00636]
[1736973688867,0.01106539,99822.0,99816.0,0.00636]
[1736973689071,0.00206539,99822.0,99816.0,0.00636]
[1736973689268,6.539e-05,99822.0,99816.0,0.00636]
[1736973689553,0.00706539,99822.0,99816.0,0.00636]
[1736973689711,0.00106539,99822.0,99816.0,0.00636]
[1736973690081,0.00706539,99822.0,99816.0,0.00636]
[1736973690435,6.539e-05,99822.0,99817.0,0.00636]
[1736973690639,0.00806539,99822.0,99817.0,0.01446]
[1736973691312,0.00706539,99822.0,99817.0,0.01446]
[1736973691927,0.00706539,99822.0,99818.0,0.00636]
[1736973692155,0.00706539,99822.0,99818.0,0.01446]
[1736973692562,6.539e-05,99822.0,99818.0,0.01446]
[1736973692772,6.539e-05,99822.0,99819.0,0.0486]
[1736973692981,0.00706539,99822.0,99820.0,0.006306]
[1736973693152,0.00106539,99822.0,99821.0,0.0772]
[1736973693565,0.00706539,99822.0,99821.0,0.0853]
[1736973693762,0.00106539,99822.0,99821.0,0.0853]
[1736973694167,0.00906539,99822.0,99821.0,0.0853]
[1736973694373,6.539e-05,99822.0,99821.0,0.0999566]
[1736973694580,0.00306539,99822.0,99821.0,0.1009566]
[1736973694928,0.00306539,99822.0,99821.0,0.22918522]
[1736973695150,0.00306539,99822.0,99821.0,0.22818352]
[1736973696172,0.00306539,99822.0,99821.0,0.0863]
[1736973696414,0.00306539,99822.0,99821.0,0.09266]
[1736973696630,0.00306539,99822.0,99821.0,0.0863]
[1736973696838,0.00306539,99822.0,99821.0,0.09266]
[1736973697049,0.00306539,99822.0,99821.0,0.09166]
[1736973697273,0.00306539,99822.0,99821.0,0.03008198]
[1736973697483,6.539e-05,99822.0,99821.0,0.01546]
[1736973697678,0.00306539,99822.0,99821.0,0.01546]
[1736973697888,0.00306539,99822.0,99821.0,0.01446]
[1736973698425,0.00306539,99822.0,99821.0,0.01546]
[1736973699292,6.539e-05,99822.0,99821.0,0.01546]
[1736973699492,0.00706539,99822.0,99821.0,0.01546]
[1736973699730,0.00706539,99822.0,99821.0,0.01404622]
[1736973700147,0.00806539,99822.0,99821.0,0.01404622]
[1736973707220,0.00806539,99822.0,99821.0,0.00768622]
[1736973708316,0.27788646,99822.0,99821.0,0.00768622]
[1736973708517,0.26229231,99822.0,99821.0,0.00768622]
[1736973709308,0.25429231,99822.0,99821.0,0.00768622]
[1736973709547,0.25729231,99822.0,99821.0,0.00768622]
[1736973709728,0.35604906,99822.0,99821.0,0.00768622]
[1736973709930,0.34704906,99822.0,99821.0,0.00854212]
[1736973710130,0.35484646,99822.0,99821.0,0.00854212]
[1736973710472,0.25908971,99822.0,99821.0,0.00854212]
[1736973710876,0.26508971,99822.0,99821.0,0.00854212]
[1736973712271,0.450358,99821.0,99820.0,9.98510475]
[1736973712476,0.22381778,99827.0,99825.0,8.58620013]
[1736973712696,0.10422692,99826.0,99825.0,8.54613013]
[1736973712901,0.10422692,99826.0,99825.0,8.50606013]
[1736973713113,0.13745503,99826.0,99825.0,8.44595513]
[1736973713525,0.16992408,99826.0,99825.0,8.44595513]
[1736973713821,0.16992408,99826.0,99825.0,8.49704454]
[1736973714242,0.50173904,99826.0,99825.0,8.42996504]
[1736973714442,0.43704188,99826.0,99825.0,8.38989504]
[1736973715633,0.62104188,99826.0,99825.0,8.38989504]
[1736973715858,0.62104188,99826.0,99825.0,8.38889504]
[1736973716076,0.58804188,99826.0,99825.0,7.96239401]
[1736973716287,0.58604188,99826.0,99825.0,7.96239401]
[1736973716494,0.61004188,99826.0,99825.0,7.96239401]
[1736973716929,0.60904188,99826.0,99825.0,7.96239401]
[1736973717079,0.61104188,99826.0,99825.0,7.90228901]
[1736973717277,0.61104188,99826.0,99825.0,7.86221901]
[1736973717479,0.60904188,99826.0,99825.0,7.86221901]
[1736973717667,0.60904188,99826.0,99825.0,7.29545629]
[1736973717871,0.60904188,99826.0,99825.0,7.23535129]
[1736973718090,0.60904188,99826.0,99825.0,7.19528129]
[1736973718722,0.61104188,99826.0,99825.0,7.19528129]
[1736973719125,0.61104188,99826.0,99825.0,7.09510629]
[1736973719324,0.60904188,99826.0,99825.0,7.09510629]
[1736973719523,0.61104188,99826.0,99825.0,7.09510629]
[1736973719726,0.83535705,99826.0,99825.0,7.09510629]
[1736973719924,0.83335705,99826.0,99825.0,7.01696629]
[1736973720125,0.83535705,99826.0,99825.0,6.99693129]
[1736973720326,0.83535705,99826.0,99825.0,6.81567079]
[1736973720544,0.83335705,99826.0,99825.0,6.81567079]
[1736973720754,0.83535705,99826.0,99825.0,6.81767079]
[1736973720971,0.61104188,99826.0,99825.0,6.77760079]
[1736973721173,0.61104188,99826.0,99825.0,6.71749579]
[1736973721506,1.78234188,99826.0,99825.0,6.71749579]
[1736973722127,1.78034188,99826.0,99825.0,6.71549579]
[1736973722529,1.78234188,99826.0,99825.0,6.71749579]
[1736973722728,1.78034188,99826.0,99825.0,6.71749579]
[1736973722933,1.78034188,99826.0,99825.0,6.71549579]
[1736973723134,1.78413928,99826.0,99825.0,6.71549579]
[1736973723335,1.96139525,99826.0,99825.0,6.71749579]
[1736973723692,1.96339525,99826.0,99825.0,6.71549579]
[1736973723892,1.96139525,99826.0,99825.0,6.67849579]
[1736973724093,1.08749525,99826.0,99825.0,6.67849579]
[1736973724304,1.0872298,99826.0,99825.0,6.67849579]
[1736973724529,0.90797383,99826.0,99825.0,6.67849579]
[1736973724954,0.93097383,99826.0,99825.0,6.59835579]
[1736973725162,0.93097383,99826.0,99825.0,6.57632079]
[1736973725362,2.03730691,99826.0,99825.0,6.18093194]
[1736973725594,2.09563016,99826.0,99825.0,6.1060997]
[1736973725794,2.09563016,99826.0,99825.0,6.03597529]
[1736973726015,1.87355708,99826.0,99825.0,5.91705642]
[1736973726248,1.87155708,99826.0,99825.0,5.86364384]
[1736973726484,1.87155708,99826.0,99825.0,5.86564384]
[1736973726654,2.34063518,99826.0,99825.0,5.86564384]
[1736973726868,2.33463518,99826.0,99825.0,5.78133274]
[1736973727068,2.37338922,99826.0,99825.0,5.70119274]
[1736973727305,2.37338922,99826.0,99825.0,4.05951016]
[1736973727536,2.39355655,99826.0,99825.0,0.3453946]
[1736973727754,2.38719655,99826.0,99825.0,0.3449946]
[1736973727959,1.50040995,99826.0,99825.0,0.2448146]
[1736973728166,2.16387058,99826.0,99825.0,0.2448146]
[1736973728376,1.39780597,99826.0,99825.0,0.2448146]
[1736973728586,0.90797383,99826.0,99825.0,0.2448146]
[1736973728805,0.91997383,99826.0,99825.0,0.2448146]
[1736973729006,0.91097383,99826.0,99825.0,0.2448146]
[1736973729183,0.91697383,99826.0,99825.0,0.2448146]
[1736973729416,0.91897383,99826.0,99825.0,0.1446396]
[1736973729660,0.93297383,99826.0,99825.0,0.1446396]
[1736973729842,1.16572647,99826.0,99825.0,0.1246036]
[1736973730162,1.17505812,99826.0,99825.0,0.0444596]
[1736973730393,1.20278966,99826.0,99825.0,0.0444596]
[1736973730604,0.350394,99803.0,99802.0,0.0008561]
[1736973730805,0.47762092,99803.0,99802.0,0.05094551]
[1736973731448,0.47762092,99803.0,99802.0,1e-07]
[1736973731654,0.80943588,99803.0,99802.0,1e-07]
[1736973733244,0.35041,99795.0,99773.0,0.0797]
[1736973733444,0.47763692,99795.0,99773.0,0.0797]
[1736973734662,0.47763692,99795.0,99794.0,0.00092119]
[1736973735263,0.45463692,99795.0,99794.0,0.00092119]
[1736973735547,0.45463692,99795.0,99794.0,0.1307106]
[1736973735765,0.45463692,99795.0,99794.0,0.08162119]
[1736973736184,0.45963692,99795.0,99794.0,0.08062119]
[1736973736358,0.45963692,99795.0,99794.0,0.08162119]
[1736973736359,0.45463692,99795.0,99794.0,0.08162119]
[1736973737624,0.45463692,99795.0,99794.0,0.1317106]
[1736973737898,0.45463692,99795.0,99794.0,0.1307106]
[1736973738102,0.30463692,99795.0,99794.0,0.13282434]
[1736973738313,0.30463692,99795.0,99794.0,0.15277677]
[1736973738936,0.10422692,99795.0,99794.0,0.15077677]
[1736973739112,0.200398,99801.0,99795.0,0.078]
[1736973739294,0.200402,99799.0,99796.0,0.0458]
[1736973739494,0.200402,99799.0,99796.0,0.09811341]
[1736973740110,0.400804,99799.0,99796.0,0.09811341]
[1736973741043,0.200406,99797.0,99796.0,0.09811341]
[1736973741174,0.30463292,99797.0,99796.0,0.09811341]
[1736973741857,0.30463292,99797.0,99796.0,0.10011341]
[1736973742272,0.30463292,99797.0,99796.0,0.09811341]
[1736973742448,0.30463292,99797.0,99796.0,0.11585687]
[1736973742659,0.30463292,99797.0,99796.0,0.11985687]
[1736973743413,0.30463292,99797.0,99796.0,0.10211341]
[1736973743620,0.30563292,99797.0,99796.0,0.10311341]
[1736973743807,0.30563292,99797.0,99796.0,0.10211341]
[1736973744042,0.30563292,99797.0,99796.0,0.09811341]
[1736973744257,0.003,99797.0,99796.0,0.10311341]
[1736973744470,0.003,99797.0,99796.0,0.20265687]
[1736973744699,0.08938686,99811.0,99798.0,0.0813]
[1736973744906,0.200375,99813.0,99800.0,0.0813]
[1736973745119,0.200366,99818.0,99801.0,0.0461]
[1736973745345,0.10422692,99818.0,99804.0,0.0813]
[1736973745562,0.10422692,99818.0,99807.0,0.0813]
[1736973745563,0.200366,99817.0,99807.0,0.0813]
[1736973745763,0.200354,99823.0,99808.0,0.0813]
[1736973745901,0.001,99811.0,99808.0,0.08294259]
[1736973746096,0.001,99811.0,99809.0,0.0813]
[1736973746306,0.001,99811.0,99810.0,0.00162262]
[1736973746550,0.001,99811.0,99810.0,0.21081656]
[1736973747158,0.0017955,99818.0,99811.0,0.0813]
[1736973747358,0.0017955,99818.0,99811.0,0.13138941]
[1736973747534,0.0017955,99818.0,99812.0,0.08290246]
[1736973747882,0.10422692,99817.0,99812.0,0.13299187]
[1736973748475,0.50495992,99817.0,99812.0,0.13299187]
[1736973749651,0.0017955,99818.0,99812.0,0.13299187]
[1736973749836,0.003,99817.0,99813.0,0.0813]
[1736973750041,0.003,99817.0,99813.0,0.13138941]
[1736973750278,0.08938686,99830.0,99815.0,0.0813]
[1736973750279,0.0015929,99826.0,99815.0,0.0813]
[1736973750483,0.0015929,99826.0,99817.0,0.0813]
[1736973750705,0.0015929,99826.0,99818.0,0.04778254]
[1736973750946,0.0015929,99826.0,99819.0,0.0813]
[1736973751357,0.0015929,99826.0,99823.0,0.1]
[1736973751563,0.0015929,99826.0,99825.0,0.1274]
[1736973751765,0.0015929,99826.0,99825.0,0.16594819]
[1736973752120,0.0015929,99826.0,99825.0,0.26594819]
[1736973752546,0.0015929,99826.0,99825.0,0.3160376]
[1736973752962,0.0085929,99826.0,99825.0,0.3233976]
[1736973753160,0.0085929,99826.0,99825.0,0.3223976]
[1736973753582,0.0175929,99826.0,99825.0,0.3233976]
[1736973753791,0.0105929,99826.0,99825.0,0.3223976]
[1736973753990,0.0105929,99826.0,99825.0,0.28384941]
[1736973754186,0.0105929,99826.0,99825.0,0.28547175]
[1736973754397,0.0115929,99826.0,99825.0,0.28384941]
[1736973755203,0.0115929,99826.0,99825.0,0.2083557]
[1736973755465,0.0115929,99826.0,99825.0,0.18384941]
[1736973756085,0.0185929,99826.0,99825.0,0.18484941]
[1736973756275,0.0185929,99826.0,99825.0,0.22333435]
[1736973756476,0.0185929,99826.0,99825.0,0.17848941]
[1736973757385,0.0175929,99826.0,99825.0,0.17848941]
[1736973757945,0.0025929,99826.0,99825.0,0.15248941]
[1736973758071,0.0095929,99826.0,99825.0,0.15348941]
[1736973758787,0.11381982,99826.0,99825.0,0.15348941]
[1736973759414,0.11381982,99826.0,99825.0,0.15434421]
[1736973759954,0.0095929,99826.0,99825.0,0.1672928]
[1736973760614,0.0095929,99826.0,99825.0,0.15434421]
[1736973761436,0.11381982,99826.0,99825.0,0.13324421]
[1736973762159,0.12597615,99826.0,99825.0,0.13324421]
[1736973762626,0.12497615,99826.0,99825.0,0.13324421]
[1736973762783,0.11797615,99826.0,99825.0,0.13624421]
[1736973763172,0.11897615,99826.0,99825.0,0.14024421]
[1736973763376,0.11897615,99826.0,99825.0,0.13224421]
[1736973763573,0.11897615,99826.0,99825.0,0.13624421]
[1736973763842,0.11997615,99826.0,99825.0,0.13924421]
[1736973763983,0.11797615,99826.0,99825.0,0.13624421]
[1736973764187,0.11797615,99826.0,99825.0,0.13360613]
[1736973764420,0.11897615,99826.0,99825.0,0.14060613]
[1736973765815,0.11797615,99826.0,99825.0,0.13760613]
[1736973766177,0.11897615,99826.0,99825.0,0.13660613]
[1736973766512,0.11897615,99826.0,99825.0,0.13924421]
[1736973769323,0.11897615,99826.0,99825.0,0.13524421]
[1736973769524,0.11797615,99826.0,99825.0,0.13624421]
[1736973769934,0.11897615,99826.0,99825.0,0.13924421]
[1736973771534,0.11897615,99826.0,99825.0,0.05794421]
[1736973772297,0.26897615,99826.0,99825.0,0.05794421]
[1736973772515,0.29197615,99826.0,99825.0,0.05394421]
[1736973772932,0.41505645,99826.0,99825.0,0.05494421]
[1736973773135,0.41605645,99826.0,99825.0,0.05794421]
[1736973773316,0.40390012,99826.0,99825.0,0.05494421]
[1736973773473,0.40390012,99826.0,99825.0,0.05094421]
[1736973773674,0.59986592,99826.0,99825.0,0.05394421]
[1736973773873,0.59986592,99826.0,99805.0,0.0799]
[1736973773874,0.15,99825.0,99805.0,0.0799]
[1736973774077,0.200388,99806.0,99805.0,0.07996539]
[1736973774301,0.30461492,99806.0,99805.0,0.07996539]
[1736973775854,0.30461492,99806.0,99805.0,0.1320548]
[1736973776266,0.30561492,99806.0,99805.0,0.1360548]
[1736973776465,0.30461492,99806.0,99805.0,0.13162735]
[1736973776671,0.30461492,99806.0,99805.0,0.13662735]
[1736973776871,0.30561492,99806.0,99805.0,0.14062735]
[1736973778558,0.30534941,99806.0,99805.0,0.14062735]
[1736973779049,0.30534941,99806.0,99805.0,0.13562735]
[1736973779265,0.30534941,99806.0,99805.0,0.13962735]
[1736973779746,0.001,99806.0,99805.0,0.15257711]
[1736973780604,0.001,99806.0,99805.0,0.13562735]
[1736973780767,0.40077,99808.0,99805.0,0.13162735]
[1736973780972,0.001,99806.0,99805.0,0.13562735]
[1736973781994,0.001,99806.0,99805.0,0.13962735]
[1736973781995,0.10522692,99806.0,99805.0,0.13962735]
[1736973782210,0.10422692,99806.0,99805.0,0.1340548]
[1736973782408,0.10422692,99806.0,99805.0,0.14835028]
[1736973782779,0.10422692,99806.0,99805.0,0.1310548]
[1736973783221,0.10622692,99806.0,99805.0,0.1309096]
[1736973783433,0.002,99806.0,99805.0,0.1309096]
[1736973783642,0.200388,99807.0,99805.0,0.1349096]
[1736973783855,0.004,99806.0,99805.0,0.1349096]
[1736973784271,0.004,99806.0,99805.0,0.0550096]
[1736973784272,0.30861492,99806.0,99805.0,0.0550096]
[1736973785054,0.30861492,99806.0,99805.0,0.0510096]
[1736973785514,0.31761492,99806.0,99805.0,0.0520096]
[1736973785711,0.30461492,99806.0,99805.0,0.0510096]
[1736973786042,0.4397505,99806.0,99805.0,0.0620096]
[1736973786443,0.4397505,99806.0,99805.0,0.0550096]
[1736973786645,0.4407505,99806.0,99805.0,0.0570096]
[1736973786864,0.30661492,99806.0,99805.0,0.0610096]
[1736973787419,0.47761492,99806.0,99805.0,0.0550096]
[1736973788134,0.50871528,99806.0,99805.0,0.0550096]
[1736973788305,0.47761492,99806.0,99805.0,6e-07]
[1736973788543,0.35041,99795.0,99794.0,4e-07]
[1736973788747,0.82913284,99795.0,99794.0,4e-07]
[1736973788938,0.373457,99772.0,99771.0,0.0003]
[1736973789141,0.47768392,99772.0,99771.0,0.0003]
[1736973789346,0.50873116,99772.0,99771.0,1e-06]
[1736973789474,0.50873201,99772.0,99771.0,1e-06]
[1736973790086,0.53414069,99772.0,99771.0,0.004001]
[1736973790294,0.55856533,99772.0,99771.0,1e-06]
[1736973790499,0.56168632,99772.0,99771.0,1e-06]
[1736973790750,0.350497,99752.0,99736.0,0.0799]
[1736973790975,0.48296754,99752.0,99751.0,0.05048941]
[1736973791372,0.45472392,99752.0,99751.0,0.05048941]
[1736973791574,0.45472392,99752.0,99751.0,0.05553835]
[1736973791803,0.45472392,99752.0,99751.0,0.05048941]
[1736973792012,0.30472392,99752.0,99751.0,0.05048941]
[1736973792189,0.30472392,99752.0,99751.0,0.13038941]
[1736973792388,0.30472392,99752.0,99751.0,0.17928941]
[1736973792601,0.63457854,99752.0,99751.0,0.17928941]
[1736973792911,0.32985462,99752.0,99751.0,0.08827431]
[1736973793050,0.32985462,99752.0,99751.0,0.06934537]
[1736973793253,0.32985462,99752.0,99751.0,0.27134537]
[1736973793625,0.08928946,99754.0,99753.0,0.1]
[1736973793754,0.08928946,99754.0,99753.0,0.2489]
[1736973793955,0.03928946,99754.0,99753.0,0.25099455]
[1736973794328,0.200448,99777.0,99753.0,0.27703]
[1736973794457,0.10422692,99771.0,99754.0,0.1]
[1736973794659,0.200477,99762.0,99754.0,0.1]
[1736973794875,0.200477,99762.0,99755.0,0.00207446]
[1736973795074,0.200477,99762.0,99754.0,0.15008941]
[1736973795419,0.200477,99762.0,99755.0,0.07286281]
[1736973795623,0.200477,99762.0,99755.0,0.0227734]
[1736973795839,0.200477,99762.0,99755.0,0.07286281]
[1736973796074,0.200477,99762.0,99756.0,0.0799]
[1736973796279,0.200461,99770.0,99761.0,0.1]
[1736973796482,0.200461,99770.0,99762.0,0.02527628]